fUSD/lending_fUSD_20250502
["ID","MTS","AMOUNT","RATE_DAILY","PERIOD"]
[359589916,1746168641171,-450.0,0.00019983,2]
[359589917,1746168641180,-598.98,0.00019983,2]
[359589918,1746168641190,-1270.57,0.00019983,2]
[359589919,1746168641199,-450.0,0.00019983,2]
[359589920,1746168641208,-450.0,0.00019983,2]
[359589921,1746168641218,-450.0,0.00019983,2]
[359589922,1746168641227,-1115.92,0.00019983,2]
[359589923,1746168641237,-450.0,0.00019983,2]
[359589924,1746168641247,-450.0,0.00019983,2]
[359589925,1746168641257,-611.94,0.00019983,2]
[359589926,1746168641266,-1798.23,0.00019983,2]
[359589927,1746168641276,-705.7,0.00019983,2]
[359589928,1746168641286,-1798.23,0.00019983,2]
[359589929,1746168641295,-540.77,0.00019983,2]
[359589931,1746168641304,-565.65,0.00019983,2]
[359589932,1746168641315,-3020.04,0.00019983,2]
[359589933,1746168641326,-551.6356764,0.00019983,2]
[359589934,1746168641335,-450.0,0.00019983,2]
[359589935,1746168641345,-450.0,0.00019983,2]
[359589936,1746168641354,-1630.35,0.00019983,2]
[359589937,1746168641363,-319.18882795,0.00019983,2]
[359589938,1746168641373,-3696.76,0.00019983,2]
[359589939,1746168641382,-883.25,0.00019983,2]
[359589940,1746168641392,-460.88,0.00019983,2]
[359589941,1746168641401,-759.54,0.00019983,2]
[359589942,1746168641411,-484.57,0.00019983,2]
[359589943,1746168641420,-450.0,0.00019983,2]
[359589944,1746168641430,-833.92,0.00019983,2]
[359589945,1746168641439,-450.0,0.00019983,2]
[359589946,1746168641451,-450.0,0.00019983,2]
[359589947,1746168641462,-450.0,0.00019983,2]
[359589948,1746168641471,-757.36,0.00019983,2]
[359589949,1746168641481,-450.0,0.00019983,2]
[359589950,1746168641491,-899.04,0.00019983,2]
[359589951,1746168641502,-506.04,0.00019983,2]
[359589952,1746168641511,-791.07,0.00019983,2]
[359589953,1746168641521,-450.0,0.00019983,2]
[359589954,1746168641531,-450.0,0.00019983,2]
[359589955,1746168641541,-450.0,0.00019983,2]
[359589956,1746168641551,-704.98,0.00019983,2]
[359589957,1746168641561,-1320.29,0.00019983,2]
[359589958,1746168641571,-450.0,0.00019983,2]
[359589959,1746168641580,-450.0,0.00019983,2]
[359589960,1746168641590,-1338.32,0.00019983,2]
[359589961,1746168641599,-1031.42,0.00019983,2]
[359589962,1746168641609,-450.0,0.00019983,2]
[359589963,1746168641617,-450.0,0.00019983,2]
[359589964,1746168641627,-450.0,0.00019983,2]
[359589965,1746168641636,-450.0,0.00019983,2]
[359589966,1746168641645,-450.0,0.00019983,2]
[359589967,1746168641654,-480.76,0.00019983,2]
[359589968,1746168641663,-450.0,0.00019983,2]
[359589969,1746168641673,-450.0,0.00019983,2]
[359589970,1746168641682,-450.0,0.00019983,2]
[359589971,1746168641691,-450.0,0.00019983,2]
[359589972,1746168641700,-450.0,0.00019983,2]
[359589973,1746168641710,-450.0,0.00019983,2]
[359589974,1746168641720,-450.0,0.00019983,2]
[359589975,1746168641729,-1517.6,0.00019983,2]
[359589976,1746168641738,-1203.06,0.00019983,2]
[359589977,1746168641748,-450.0,0.00019983,2]
[359589978,1746168641757,-450.0,0.00019983,2]
[359589979,1746168641766,-2756.94,0.00019983,2]
[359589980,1746168641775,-1450.41,0.00019983,2]
[359589981,1746168641785,-466.59881845,0.00019983,2]
[359589982,1746168641794,-671.88,0.00019983,2]
[359589983,1746168641804,-371.77581821,0.00019983,2]
[359589984,1746168641812,-450.0,0.00019983,2]
[359589985,1746168641821,-450.0,0.00019983,2]
[359589986,1746168641830,-717.09,0.00019983,2]
[359589987,1746168641839,-1762.6,0.00019983,2]
[359589988,1746168641848,-450.0,0.00019983,2]
[359589989,1746168641857,-450.0,0.00019983,2]
[359589990,1746168641866,-450.0,0.00019983,2]
[359589991,1746168641877,-450.0,0.00019983,2]
[359589992,1746168641887,-705.68,0.00019983,2]
[359589993,1746168641896,-450.0,0.00019983,2]
[359589994,1746168641906,-4396.72,0.00019983,2]
[359589995,1746168641916,-14825.1,0.00019983,2]
[359589996,1746168641925,-450.0,0.00019983,2]
[359589997,1746168641935,-642.76,0.00019983,2]
[359589998,1746168641944,-210.81557993,0.00019983,2]
[359589999,1746168641954,-450.0,0.00019983,2]
[359590000,1746168641964,-450.0,0.00019983,2]
[359590001,1746168641974,-450.0,0.00019983,2]
[359590002,1746168642196,-450.0,0.00019983,2]
[359590003,1746168642206,-172.94262954,0.00019983,2]
[359590004,1746168642216,-1526.96,0.00019983,2]
[359590005,1746168642226,-450.0,0.00019983,2]
[359590006,1746168642235,-450.0,0.00019983,2]
[359590007,1746168642245,-450.0,0.00019983,2]
[359590008,1746168642255,-450.0,0.00019983,2]
[359590009,1746168642265,-1037.63,0.00019983,2]
[359590010,1746168642274,-450.0,0.00019983,2]
[359590011,1746168642283,-450.0,0.00019983,2]
[359590012,1746168642293,-450.0,0.00019983,2]
[359590013,1746168642302,-478.97,0.00019983,2]
[359590014,1746168642311,-817.46,0.00019983,2]
[359590015,1746168642320,-466.27,0.00019983,2]
[359590016,1746168642330,-604.44,0.00019983,2]
[359590017,1746168642340,-193.50305613,0.00019983,2]
[359590018,1746168642349,-450.0,0.00019984,2]
[359590019,1746168642357,-450.0,0.00019984,2]
[359590020,1746168642366,-723.16,0.00019984,2]
[359590021,1746168642375,-450.0,0.00019984,2]
[359590022,1746168642385,-450.0,0.00019984,2]
[359590023,1746168642394,-559.62,0.00019984,2]
[359590024,1746168642403,-283.69596691,0.00019984,2]
[359590025,1746168642412,-255.88549319,0.00019984,2]
[359590026,1746168642421,-446.35235035,0.00019984,2]
[359590027,1746168642431,-450.0,0.00019984,2]
[359590028,1746168642440,-420.55718536,0.00019984,2]
[359590029,1746168642453,-855.58,0.00019984,2]
[359590030,1746168642463,-526.08,0.00019984,2]
[359590031,1746168642472,-450.0,0.00019984,2]
[359590032,1746168642482,-450.0,0.00019984,2]
[359590033,1746168642492,-450.0,0.00019984,2]
[359590034,1746168642501,-847.75,0.00019984,2]
[359590035,1746168642511,-450.0,0.00019984,2]
[359590036,1746168642521,-450.0,0.00019984,2]
[359590037,1746168642531,-450.0,0.00019984,2]
[359590038,1746168642540,-450.0,0.00019984,2]
[359590039,1746168642550,-450.0,0.00019984,2]
[359590040,1746168642560,-1000.0,0.00019984,2]
[359590041,1746168642569,-672.42,0.00019984,2]
[359590042,1746168642578,-450.0,0.00019984,2]
[359590043,1746168642587,-450.0,0.00019984,2]
[359590044,1746168642597,-450.0,0.00019984,2]
[359590045,1746168642606,-677.44,0.00019984,2]
[359590046,1746168642617,-836.73,0.00019984,2]
[359590047,1746168642625,-450.0,0.00019984,2]
[359590048,1746168642635,-431.22056157,0.00019984,2]
[359590049,1746168642644,-450.0,0.00019984,2]
[359590050,1746168642653,-1029.83,0.00019984,2]
[359590051,1746168642663,-450.0,0.00019984,2]
[359590052,1746168642672,-809.85,0.00019984,2]
[359590053,1746168642681,-317.64203809,0.00019984,2]
[359590054,1746168642690,-450.0,0.00019984,2]
[359590055,1746168642699,-450.0,0.00019984,2]
[359590056,1746168642709,-478.71395855,0.00019984,2]
[359590057,1746168642718,-450.0,0.00019984,2]
[359590058,1746168642727,-450.0,0.00019984,2]
[359590059,1746168642736,-479.67427224,0.00019984,2]
[359590060,1746168642746,-450.0,0.00019984,2]
[359590061,1746168642755,-450.0,0.00019984,2]
[359590062,1746168642764,-450.0,0.00019984,2]
[359590063,1746168642774,-450.0,0.00019984,2]
[359590064,1746168642783,-450.0,0.00019984,2]
[359590065,1746168642792,-450.0,0.00019984,2]
[359590066,1746168642802,-450.0,0.00019984,2]
[359590067,1746168642811,-450.0,0.00019984,2]
[359590068,1746168642820,-545.37074851,0.00019984,2]
[359590069,1746168642830,-552.58658292,0.00019984,2]
[359590070,1746168642839,-520.69423057,0.00019984,2]
[359590071,1746168642849,-481.24255364,0.00019984,2]
[359590072,1746168642858,-450.0,0.00019984,2]
[359590073,1746168642868,-450.0,0.00019984,2]
[359590074,1746168642878,-450.0,0.00019984,2]
[359590075,1746168642888,-450.0,0.00019984,2]
[359590076,1746168642897,-478.04118226,0.00019984,2]
[359590077,1746168642906,-479.62046989,0.00019984,2]
[359590078,1746168642916,-516.29378622,0.00019984,2]
[359590079,1746168642926,-621.61,0.00019984,2]
[359590080,1746168642936,-474.85670226,0.00019984,2]
[359590081,1746168642946,-237.32068191,0.00019984,2]
[359590082,1746168642955,-483.44313905,0.00019984,2]
[359590083,1746168642965,-471.51654423,0.00019984,2]
[359590084,1746168642975,-332.7319738,0.00019984,2]
[359590085,1746168642985,-481.77396082,0.00019984,2]
[359590086,1746168642995,-478.29285911,0.00019984,2]
[359590087,1746168643005,-450.0,0.00019984,2]
[359590088,1746168643014,-450.0,0.00019984,2]
[359590089,1746168643024,-428.85523287,0.00019984,2]
[359590090,1746168643033,-476.27313817,0.00019984,2]
[359590091,1746168643043,-595.36081012,0.00019984,2]
[359590092,1746168643052,-450.0,0.00019984,2]
[359590093,1746168643061,-513.44314948,0.00019984,2]
[359590094,1746168643070,-450.0,0.00019984,2]
[359590095,1746168643079,-541.66951545,0.00019984,2]
[359590096,1746168643088,-450.0,0.00019984,2]
[359590097,1746168643098,-450.0,0.00019984,2]
[359590098,1746168643106,-450.0,0.00019984,2]
[359590099,1746168643115,-450.0,0.00019984,2]
[359590100,1746168643124,-478.36009512,0.00019984,2]
[359590101,1746168643134,-519.01346839,0.00019984,2]
[359590102,1746168643143,-525.60899567,0.00019984,2]
[359590103,1746168643153,-450.0,0.00019984,2]
[359590104,1746168643163,-450.0,0.00019984,2]
[359590105,1746168643172,-450.0,0.00019984,2]
[359590106,1746168643181,-579.65568725,0.00019984,2]
[359590107,1746168643190,-528.0005807,0.00019984,2]
[359590108,1746168643199,-616.63,0.00019984,2]
[359590109,1746168643209,-481.36260393,0.00019984,2]
[359590110,1746168643218,-556.49207029,0.00019984,2]
[359590111,1746168643227,-450.0,0.00019984,2]
[359590112,1746168643237,-485.96661095,0.00019984,2]
[359590113,1746168643246,-450.0,0.00019984,2]
[359590115,1746168643256,-675.84,0.00019984,2]
[359590116,1746168643266,-450.0,0.00019984,2]
[359590117,1746168643275,-505.69879966,0.00019984,2]
[359590118,1746168643285,-450.0,0.00019984,2]
[359590119,1746168643294,-470.72173078,0.00019984,2]
[359590120,1746168643303,-450.0,0.00019984,2]
[359590121,1746168643312,-474.73630796,0.00019984,2]
[359590122,1746168643322,-471.39131254,0.00019984,2]
[359590123,1746168643331,-475.24210284,0.00019984,2]
[359590125,1746168643340,-450.0,0.00019984,2]
[359590126,1746168643350,-450.0,0.00019984,2]
[359590127,1746168643359,-500.0,0.00019984,2]
[359590129,1746168643369,-527.98627395,0.00019984,2]
[359590131,1746168643379,-588.59856865,0.00019984,2]
[359590133,1746168643388,-1154.17,0.00019984,2]
[359590135,1746168643398,-450.0,0.00019984,2]
[359590137,1746168643407,-450.0,0.00019984,2]
[359590139,1746168643416,-522.07140595,0.00019984,2]
[359590141,1746168643426,-476.4633383,0.00019984,2]
[359590142,1746168643435,-450.0,0.00019984,2]
[359590143,1746168643445,-452.41,0.00019984,2]
[359590144,1746168643459,-995.97,0.00019984,2]
[359590145,1746168643468,-450.0,0.00019984,2]
[359590146,1746168643477,-450.0,0.00019984,2]
[359590147,1746168643486,-1052.37,0.00019984,2]
[359590148,1746168643497,-450.0,0.00019984,2]
[359590149,1746168643506,-537.91155507,0.00019984,2]
[359590150,1746168643515,-478.15755726,0.00019984,2]
[359590151,1746168643527,-450.0,0.00019984,2]
[359590152,1746168643537,-510.67624273,0.00019984,2]
[359590153,1746168643547,-557.66355342,0.00019984,2]
[359590154,1746168643556,-487.21528465,0.00019984,2]
[359590155,1746168643565,-568.33862263,0.00019984,2]
[359590156,1746168643574,-450.0,0.00019984,2]
[359590157,1746168643584,-543.58999611,0.00019984,2]
[359590158,1746168643593,-450.0,0.00019984,2]
[359590159,1746168643602,-484.82103318,0.00019984,2]
[359590160,1746168643611,-471.05231591,0.00019984,2]
[359590161,1746168643620,-478.66110505,0.00019984,2]
[359590162,1746168643629,-470.0,0.00019984,2]
[359590163,1746168643638,-471.42,0.00019984,2]
[359590164,1746168643647,-450.0,0.00019984,2]
[359590165,1746168643656,-1059.06,0.00019984,2]
[359590166,1746168643665,-471.77946675,0.00019984,2]
[359590167,1746168643675,-475.9586103,0.00019984,2]
[359590168,1746168643684,-635.94,0.00019984,2]
[359590169,1746168643693,-523.20208212,0.00019984,2]
[359590170,1746168643703,-450.0,0.00019984,2]
[359590171,1746168643713,-526.44810028,0.00019984,2]
[359590172,1746168643722,-493.94,0.00019984,2]
[359590173,1746168643732,-564.89707459,0.00019984,2]
[359590174,1746168643741,-510.92426429,0.00019984,2]
[359590175,1746168643751,-450.0,0.00019984,2]
[359590176,1746168643760,-533.95367948,0.00019984,2]
[359590177,1746168643770,-500.0,0.00019984,2]
[359590178,1746168643779,-475.92393356,0.00019984,2]
[359590179,1746168643788,-552.30096776,0.00019984,2]
[359590180,1746168643798,-2077.65,0.00019984,2]
[359590181,1746168643808,-450.0,0.00019984,2]
[359590182,1746168643818,-904.26,0.00019984,2]
[359590183,1746168643827,-450.0,0.00019984,2]
[359590184,1746168643836,-460.35,0.00019984,2]
[359590185,1746168643846,-475.68788128,0.00019984,2]
[359590187,1746168643856,-484.36,0.00019984,2]
[359590188,1746168643866,-450.0,0.00019984,2]
[359590189,1746168643876,-527.18318092,0.00019984,2]
[359590190,1746168643886,-450.0,0.00019984,2]
[359590191,1746168643896,-471.7155258,0.00019984,2]
[359590192,1746168643906,-450.0,0.00019984,2]
[359590193,1746168643915,-576.86,0.00019984,2]
[359590194,1746168643925,-541.4492389,0.00019984,2]
[359590195,1746168643935,-502.1,0.00019984,2]
[359590196,1746168643946,-477.69010555,0.00019984,2]
[359590197,1746168643955,-613.96,0.00019984,2]
[359590198,1746168643965,-621.58,0.00019984,2]
[359590200,1746168643974,-1014.98,0.00019984,2]
[359590202,1746168643984,-450.0,0.00019984,2]
[359590204,1746168643994,-1485.73,0.00019984,2]
[359590206,1746168644002,-660.96,0.00019984,2]
[359590208,1746168644011,-450.0,0.00019984,2]
[359590209,1746168644021,-450.0,0.00019984,2]
[359590210,1746168644030,-516.32663185,0.00019984,2]
[359590211,1746168644039,-479.20352983,0.00019984,2]
[359590212,1746168644048,-450.0,0.00019984,2]
[359590213,1746168644058,-478.6696197,0.00019984,2]
[359590214,1746168644067,-482.04692344,0.00019984,2]
[359590215,1746168644077,-483.37074986,0.00019984,2]
[359590216,1746168644087,-473.97622075,0.00019984,2]
[359590217,1746168644097,-483.42226741,0.00019984,2]
[359590218,1746168644106,-483.56461967,0.00019984,2]
[359590219,1746168644116,-450.0,0.00019984,2]
[359590220,1746168644126,-638.97,0.00019984,2]
[359590221,1746168644135,-450.0,0.00019984,2]
[359590222,1746168644145,-901.15,0.00019984,2]
[359590223,1746168644154,-240.93019251,0.00019984,2]
[359590224,1746168644164,-450.0,0.00019984,2]
[359590225,1746168644173,-472.54374558,0.00019984,2]
[359590226,1746168644183,-450.0,0.00019984,2]
[359590227,1746168644191,-450.0,0.00019984,2]
[359590228,1746168644201,-479.60042015,0.00019984,2]
[359590229,1746168644211,-450.0,0.00019984,2]
[359590230,1746168644220,-450.0,0.00019984,2]
[359590231,1746168644230,-474.5058927,0.00019984,2]
[359590232,1746168644239,-486.94,0.00019984,2]
[359590233,1746168644248,-1019.41,0.00019984,2]
[359590234,1746168644257,-675.63,0.00019984,2]
[359590235,1746168644266,-468.64426461,0.00019984,2]
[359590236,1746168644275,-450.0,0.00019984,2]
[359590237,1746168644284,-850.36,0.00019984,2]
[359590238,1746168644293,-450.0,0.00019984,2]
[359590239,1746168644301,-450.0,0.00019984,2]
[359590240,1746168644310,-472.69502675,0.00019984,2]
[359590241,1746168644319,-450.0,0.00019984,2]
[359590242,1746168644328,-450.0,0.00019984,2]
[359590243,1746168644337,-512.49471322,0.00019984,2]
[359590244,1746168644346,-479.01773472,0.00019984,2]
[359590245,1746168644355,-450.0,0.00019984,2]
[359590246,1746168644363,-1018.85,0.00019984,2]
[359590247,1746168644373,-500.0,0.00019984,2]
[359590248,1746168644382,-450.0,0.00019984,2]
[359590249,1746168644391,-477.03531808,0.00019984,2]
[359590250,1746168644399,-645.77,0.00019984,2]
[359590251,1746168644408,-450.0,0.00019984,2]
[359590252,1746168644417,-450.0,0.00019984,2]
[359590253,1746168644427,-450.0,0.00019984,2]
[359590254,1746168644437,-473.29,0.00019984,2]
[359590255,1746168644446,-581.73,0.00019984,2]
[359590256,1746168644459,-479.10774645,0.00019984,2]
[359590257,1746168644468,-450.0,0.00019984,2]
[359590258,1746168644477,-502.67311899,0.00019984,2]
[359590259,1746168644486,-479.21627206,0.00019984,2]
[359590260,1746168644495,-472.09187966,0.00019984,2]
[359590261,1746168644503,-450.0,0.00019984,2]
[359590262,1746168644513,-474.36454793,0.00019984,2]
[359590263,1746168644522,-450.0,0.00019984,2]
[359590264,1746168644531,-1013.12,0.00019984,2]
[359590265,1746168644540,-470.6803191,0.00019984,2]
[359590266,1746168644549,-479.20537631,0.00019984,2]
[359590267,1746168644558,-450.0,0.00019984,2]
[359590268,1746168644568,-477.30005923,0.00019984,2]
[359590269,1746168644578,-482.99792283,0.00019984,2]
[359590270,1746168644587,-1061.94,0.00019984,2]
[359590271,1746168644596,-475.04609516,0.00019984,2]
[359590272,1746168644605,-617.62,0.00019984,2]
[359590273,1746168644615,-581.17319964,0.00019984,2]
[359590274,1746168644624,-450.0,0.00019984,2]
[359590275,1746168644633,-579.79514215,0.00019984,2]
[359590276,1746168644643,-481.31192135,0.00019984,2]
[359590277,1746168644652,-531.43,0.00019984,2]
[359590278,1746168644661,-525.39989279,0.00019984,2]
[359590279,1746168644670,-485.97,0.00019984,2]
[359590280,1746168644679,-564.58294053,0.00019984,2]
[359590281,1746168644688,-475.07523351,0.00019984,2]
[359590282,1746168644697,-450.0,0.00019984,2]
[359590283,1746168644706,-483.53289868,0.00019984,2]
[359590284,1746168644715,-2564.17,0.00019984,2]
[359590285,1746168644724,-541.5,0.00019984,2]
[359590286,1746168644733,-450.0,0.00019984,2]
[359590287,1746168644742,-450.0,0.00019984,2]
[359590288,1746168644751,-450.0,0.00019984,2]
[359590289,1746168644760,-450.0,0.00019984,2]
[359590290,1746168644769,-542.58258373,0.00019984,2]
[359590291,1746168644778,-450.0,0.00019984,2]
[359590292,1746168644787,-546.31801328,0.00019984,2]
[359590293,1746168644796,-450.0,0.00019984,2]
[359590294,1746168644805,-450.0,0.00019984,2]
[359590295,1746168644814,-834.22,0.00019984,2]
[359590296,1746168644823,-450.0,0.00019984,2]
[359590297,1746168644833,-825.92,0.00019984,2]
[359590298,1746168644841,-513.07,0.00019984,2]
[359590299,1746168644848,-533.56,0.00019984,2]
[359590300,1746168644855,-450.0,0.00019984,2]
[359590301,1746168644863,-544.2093823,0.00019984,2]
[359590302,1746168644872,-1175.55,0.00019984,2]
[359590303,1746168644879,-450.0,0.00019984,2]
[359590304,1746168644887,-474.27963675,0.00019984,2]
[359590305,1746168644895,-450.0,0.00019984,2]
[359590306,1746168644902,-450.0,0.00019984,2]
[359590307,1746168644910,-984.95,0.00019984,2]
[359590308,1746168644919,-528.00209753,0.00019984,2]
[359590309,1746168644929,-699.1,0.00019984,2]
[359590310,1746168644939,-450.0,0.00019984,2]
[359590311,1746168644948,-450.0,0.00019984,2]
[359590312,1746168644957,-164.22494384,0.00019984,2]
[359590313,1746168644967,-450.0,0.00019984,2]
[359590314,1746168644977,-450.0,0.00019984,2]
[359590315,1746168644987,-471.78928373,0.00019984,2]
[359590316,1746168644996,-475.72405936,0.00019984,2]
[359590317,1746168645006,-1417.08,0.00019984,2]
[359590318,1746168645015,-472.99754286,0.00019984,2]
[359590319,1746168645025,-450.0,0.00019984,2]
[359590320,1746168645034,-482.51711316,0.00019984,2]
[359590321,1746168645044,-627.10754496,0.00019984,2]
[359590322,1746168645053,-450.0,0.00019984,2]
[359590323,1746168645063,-614.72,0.00019984,2]
[359590324,1746168645074,-598.49286131,0.00019984,2]
[359590325,1746168645084,-2052.91,0.00019984,2]
[359590326,1746168645094,-450.0,0.00019984,2]
[359590327,1746168645104,-975.48,0.00019984,2]
[359590328,1746168645114,-474.95294266,0.00019984,2]
[359590329,1746168645123,-450.0,0.00019984,2]
[359590330,1746168645133,-450.0,0.00019984,2]
[359590331,1746168645141,-450.0,0.00019984,2]
[359590332,1746168645151,-474.22018623,0.00019984,2]
[359590333,1746168645161,-1163.22,0.00019984,2]
[359590334,1746168645170,-481.68611999,0.00019984,2]
[359590335,1746168645180,-9054.03,0.00019984,2]
[359590336,1746168645190,-369.5265182,0.00019984,2]
[359590337,1746168645199,-478.33957761,0.00019984,2]
[359590338,1746168645209,-450.0,0.00019984,2]
[359590339,1746168645219,-479.51634144,0.00019984,2]
[359590340,1746168645228,-450.0,0.00019984,2]
[359590341,1746168645237,-450.0,0.00019984,2]
[359590342,1746168645247,-450.0,0.00019984,2]
[359590343,1746168645256,-450.0,0.00019984,2]
[359590344,1746168645266,-450.0,0.00019984,2]
[359590345,1746168645276,-472.61464909,0.00019984,2]
[359590346,1746168645286,-450.0,0.00019984,2]
[359590347,1746168645295,-450.0,0.00019984,2]
[359590348,1746168645305,-478.30414347,0.00019984,2]
[359590349,1746168645315,-10098.6,0.00019984,2]
[359590350,1746168645324,-450.0,0.00019984,2]
[359590351,1746168645334,-505.94631352,0.00019984,2]
[359590352,1746168645344,-473.8258779,0.00019984,2]
[359590353,1746168645354,-278.42121964,0.00019984,2]
[359590354,1746168645363,-1356.12,0.00019984,2]
[359590355,1746168645373,-479.31271413,0.00019984,2]
[359590356,1746168645382,-500.0,0.00019984,2]
[359590357,1746168645392,-1842.02,0.00019984,2]
[359590358,1746168645401,-693.55,0.00019984,2]
[359590359,1746168645411,-450.0,0.00019984,2]
[359590360,1746168645421,-450.0,0.00019984,2]
[359590361,1746168645431,-2782.1,0.00019984,2]
[359590362,1746168645440,-476.87129019,0.00019984,2]
[359590363,1746168645451,-450.0,0.00019984,2]
[359590364,1746168645462,-480.0013835,0.00019984,2]
[359590365,1746168645471,-450.0,0.00019984,2]
[359590366,1746168645480,-450.0,0.00019984,2]
[359590367,1746168645492,-541.35997611,0.00019984,2]
[359590368,1746168645502,-1328.56,0.00019984,2]
[359590369,1746168645511,-479.60750153,0.00019984,2]
[359590370,1746168645521,-450.0,0.00019984,2]
[359590371,1746168645531,-470.90806595,0.00019984,2]
[359590372,1746168645542,-470.50571725,0.00019984,2]
[359590373,1746168645552,-450.0,0.00019984,2]
[359590374,1746168645561,-553.78022298,0.00019984,2]
[359590375,1746168645571,-477.70853353,0.00019984,2]
[359590376,1746168645581,-1052.38,0.00019984,2]
[359590377,1746168645590,-450.0,0.00019984,2]
[359590378,1746168645599,-976.89,0.00019984,2]
[359590379,1746168645609,-475.84,0.00019984,2]
[359590380,1746168645619,-450.0,0.00019984,2]
[359590381,1746168645628,-474.06297841,0.00019984,2]
[359590382,1746168645638,-472.79538287,0.00019984,2]
[359590383,1746168645647,-474.44796838,0.00019984,2]
[359590384,1746168645657,-450.0,0.00019984,2]
[359590385,1746168645667,-450.0,0.00019984,2]
[359590386,1746168645676,-816.43,0.00019984,2]
[359590387,1746168645685,-168324.58,0.00019984,2]
[359590388,1746168645695,-476.33421661,0.00019984,2]
[359590389,1746168645704,-501.51,0.00019984,2]
[359590390,1746168645714,-547.68083013,0.00019984,2]
[359590391,1746168645723,-782.21,0.00019984,2]
[359590392,1746168645733,-450.0,0.00019984,2]
[359590393,1746168645743,-450.0,0.00019984,2]
[359590394,1746168645752,-474.22776786,0.00019984,2]
[359590395,1746168645762,-450.0,0.00019984,2]
[359590396,1746168645771,-1021.44,0.00019984,2]
[359590397,1746168645780,-450.0,0.00019984,2]
[359590398,1746168645791,-9746.2,0.00019984,2]
[359590399,1746168645800,-472.71385632,0.00019984,2]
[359590400,1746168645810,-477.86865227,0.00019984,2]
[359590401,1746168645819,-473.63817928,0.00019984,2]
[359590402,1746168645829,-477.28898774,0.00019984,2]
[359590403,1746168645840,-5064.8,0.00019984,2]
[359590404,1746168645850,-562.93,0.00019984,2]
[359590405,1746168645859,-1019.88,0.00019984,2]
[359590406,1746168645869,-475.42570887,0.00019984,2]
[359590407,1746168645878,-500.0,0.00019984,2]
[359590408,1746168645888,-509.87,0.00019984,2]
[359590409,1746168645896,-450.0,0.00019984,2]
[359590410,1746168645905,-1084.84,0.00019984,2]
[359590411,1746168645914,-2884.85,0.00019984,2]
[359590412,1746168645924,-450.0,0.00019984,2]
[359590413,1746168645933,-514.61757493,0.00019984,2]
[359590414,1746168645942,-1461.33,0.00019984,2]
[359590415,1746168645952,-450.0,0.00019984,2]
[359590416,1746168645961,-24641.14,0.00019984,2]
[359590417,1746168645970,-450.0,0.00019984,2]
[359590418,1746168645979,-1101.67,0.00019984,2]
[359590419,1746168645988,-450.0,0.00019984,2]
[359590420,1746168645998,-497.8,0.00019984,2]
[359590421,1746168646008,-828.62,0.00019984,2]
[359590422,1746168646018,-450.0,0.00019984,2]
[359590423,1746168646027,-544.1092315,0.00019984,2]
[359590424,1746168646036,-535.04699561,0.00019984,2]
[359590425,1746168646045,-450.0,0.00019984,2]
[359590426,1746168646055,-450.0,0.00019984,2]
[359590427,1746168646064,-522.13552727,0.00019984,2]
[359590428,1746168646073,-450.0,0.00019984,2]
[359590429,1746168646082,-1259.98,0.00019984,2]
[359590430,1746168646092,-450.0,0.00019984,2]
[359590431,1746168646102,-521.44805444,0.00019984,2]